bitfinex/quotes_ETHUSD_20250801
["timestamp","ask_amount","ask_price","bid_price","bid_amount"]
[1754063860485,4.34,3622.3,3622.1,2.76078266]
[1754063860995,4.34,3622.3,3622.2,5.76075313]
[1754063861150,4.34,3622.3,3622.2,6.21845313]
[1754063861351,4.34,3622.3,3622.2,6.68375313]
[1754063862164,4.34,3622.3,3622.2,3.923]
[1754063862368,4.34,3622.3,3622.2,6.68375313]
[1754063863472,4.34,3622.3,3622.2,3.0]
[1754063866628,4.78784,3622.3,3621.9,1e-08]
[1754063866791,7.54859112,3622.3,3621.9,1e-08]
[1754063867117,0.1384,3622.0,3621.9,1e-08]
[1754063867323,4.4764,3622.0,3621.9,5.76098181]
[1754063867629,4.4764,3622.0,3621.9,6.68088181]
[1754063868422,4.338,3622.2,3621.9,6.68088181]
[1754063868621,4.338,3622.1,3622.0,3.9199]
[1754063868829,4.338,3622.1,3622.0,6.68080557]
[1754063870425,1.338,3622.1,3622.0,6.68080557]
[1754063871396,1.338,3622.1,3622.0,5.76090557]
[1754063871592,1.338,3622.1,3622.0,3.0]
[1754063872032,2.0152,3622.1,3621.9,1e-08]
[1754063872233,3.25490557,3622.0,3621.9,1e-08]
[1754063872528,3.71960557,3622.0,3621.9,1e-08]
[1754063873090,3.25490557,3622.0,3621.9,1e-08]
[1754063873522,3.71960557,3622.0,3621.9,1e-08]
[1754063873731,1.75886265,3622.0,3621.9,1e-08]
[1754063874036,4.51976822,3622.0,3621.9,1e-08]
[1754063874332,4.05506822,3622.0,3621.9,1e-08]
[1754063876518,0.80016265,3622.0,3621.9,1e-08]
[1754063877520,3.56106822,3622.0,3621.9,1e-08]
[1754063878153,0.80016265,3622.0,3621.9,1e-08]
[1754063878343,3.69946822,3622.0,3621.9,1e-08]
[1754063878741,4.19346822,3622.0,3621.9,1e-08]
[1754063879784,4.65816822,3622.0,3621.9,1e-08]
[1754063881662,4.19346822,3622.0,3621.9,1e-08]
[1754063881881,3.69946822,3622.0,3621.9,1e-08]
[1754063882229,3.56106822,3622.0,3621.9,1e-08]
[1754063882432,3.69946822,3622.0,3621.9,1e-08]
[1754063883076,4.19346822,3622.0,3621.9,1e-08]
[1754063883530,4.65816822,3622.0,3621.9,1e-08]
[1754063883736,5.20816822,3622.0,3621.9,1e-08]
[1754063887548,8.52746822,3622.0,3621.9,1e-08]
[1754063888169,8.99216822,3622.0,3621.9,1e-08]
[1754063889768,9.54216822,3622.0,3621.9,1e-08]
[1754063891474,16.17716822,3622.0,3621.9,1e-08]
[1754063892073,15.71246822,3622.0,3621.9,1e-08]
[1754063892369,15.21846822,3622.0,3621.9,1e-08]
[1754063892772,15.71246822,3622.0,3621.9,1e-08]
[1754063893074,6.31105803,3621.8,3619.0,5.98705352]
[1754063893274,5.98705352,3620.9,3619.1,2.76308053]
[1754063893465,5.98705352,3620.9,3620.0,2.76239848]
[1754063893466,2.76197733,3620.6,3620.0,2.76239848]
[1754063893776,4.4714,3620.5,3620.2,0.002]
[1754063894478,0.1384,3620.5,3620.3,2.76213719]
[1754063894654,2.76144525,3621.3,3620.7,2.76183644]
[1754063894849,2.76144525,3621.3,3620.8,0.9199]
[1754063894850,0.1384,3620.9,3620.8,0.9199]
[1754063895175,4.4714,3620.9,3620.8,0.9199]
[1754063895670,4.4714,3620.9,3620.8,3.68172059]
[1754063895875,4.4714,3620.9,3620.8,0.9199]
[1754063896374,4.4714,3620.9,3620.8,3.68172059]
[1754063896549,4.333,3620.9,3620.8,7.29354244]
[1754063896743,4.333,3620.9,3620.8,7.43194244]
[1754063898163,4.333,3620.9,3620.8,4.53172185]
[1754063898370,4.333,3620.9,3620.8,3.9199]
[1754063898566,4.333,3620.9,3620.8,6.68172059]
[1754063901081,0.1384,3621.4,3621.1,2.76154518]
[1754063901278,4.332,3621.3,3621.2,2.76151551]
[1754063901486,4.332,3621.3,3621.2,3.68711551]
[1754063901874,4.332,3621.3,3621.2,0.9256]
[1754063902076,4.332,3621.3,3621.2,3.68711551]
[1754063902462,4.332,3621.3,3621.2,0.9256]
[1754063902652,4.4704,3621.3,3620.9,3.19192935]
[1754063902845,4.4704,3621.3,3620.9,2.76172935]
[1754063903092,4.4704,3621.3,3621.0,3.9256]
[1754063903387,4.4704,3621.3,3621.1,0.9256]
[1754063904050,4.4704,3621.3,3621.1,0.4302]
[1754063904250,4.4704,3621.3,3621.2,0.4954]
[1754063904664,4.4704,3621.3,3621.2,0.9256]
[1754063906070,4.4704,3621.3,3621.2,3.68711551]
[1754063906264,4.4704,3621.3,3621.2,0.9256]
[1754063906881,4.4704,3621.3,3621.0,2.76161795]
[1754063907066,4.4704,3621.3,3621.1,0.9256]
[1754063907578,4.4704,3621.3,3620.8,0.002]
[1754063907777,0.1384,3621.1,3620.9,3.4954]
[1754063907978,4.33,3621.0,3620.9,3.4954]
[1754063908366,4.33,3621.0,3620.9,0.4954]
[1754063908690,4.33,3621.0,3620.8,0.002]
[1754063908857,0.1384,3620.9,3620.8,0.002]
[1754063912390,2.90014431,3620.9,3620.8,0.002]
[1754063912690,4.38753204,3620.9,3620.8,0.002]
[1754063912892,1.62578773,3620.9,3620.8,0.002]
[1754063913058,0.1384,3620.9,3620.8,0.002]
[1754063914062,2.90014431,3620.9,3620.8,0.002]
[1754063914263,0.1384,3620.9,3620.8,0.002]
[1754063916470,2.90014431,3620.9,3620.8,0.002]
[1754063916714,0.1384,3620.9,3620.8,0.002]
[1754063917697,4.4664,3620.9,3620.8,3.9658133]
[1754063918074,4.328,3620.9,3620.8,3.9658133]
[1754063918981,4.328,3620.9,3620.8,6.9658133]
[1754063919166,0.1384,3621.3,3621.2,2.76151551]
[1754063919369,4.4654,3621.3,3621.2,3.68711551]
[1754063924706,1.83912157,3621.5,3621.4,2.761363]
[1754063924873,6.02672157,3621.5,3621.4,2.761363]
[1754063925208,6.02672157,3621.5,3621.4,3.686963]
[1754063929491,6.02472157,3621.5,3621.4,3.686963]
[1754063929895,6.02472157,3621.5,3621.4,6.686963]
[1754063930082,6.02472157,3621.5,3621.4,7.29880586]
[1754063930473,6.02472157,3621.5,3621.4,7.43720586]
[1754063932509,6.02472157,3621.5,3621.4,4.67584286]
[1754063932729,6.02472157,3621.5,3621.4,5.761363]
[1754063932910,6.02472157,3621.5,3621.4,6.700163]
[1754063933822,6.02372157,3621.5,3621.4,6.838563]
[1754063934729,1.70072157,3621.5,3621.4,6.838563]
[1754063934930,6.02272157,3621.5,3621.4,6.838563]
[1754063937794,0.001,3621.9,3621.8,2.76105803]
[1754063937988,4.322,3621.9,3621.8,5.89945803]
[1754063938185,4.322,3621.9,3621.8,6.83825803]
[1754063940537,4.322,3621.9,3621.8,5.89945803]
[1754063940747,4.7765,3621.9,3621.8,3.0]
[1754063940901,4.322,3621.9,3621.8,5.76105803]
[1754063941240,4.322,3621.9,3621.8,6.83825803]
[1754063944026,4.322,3621.9,3621.8,5.89945803]
[1754063944325,4.322,3621.9,3621.8,3.1384]
[1754063944525,4.322,3621.9,3621.8,5.76105803]
[1754063947635,4.322,3621.9,3621.8,3.0]
[1754063947939,4.7765,3621.9,3621.8,5.76105803]
[1754063948133,4.7765,3621.9,3621.8,3.0]
[1754063948743,4.7765,3621.9,3621.3,0.9388]
[1754063948744,5.77102,3621.9,3621.3,5.76141774]
[1754063948918,5.2338,3621.9,3621.5,3.0]
[1754063949156,0.4545,3621.8,3621.5,3.0]
[1754063949286,0.4545,3621.7,3621.6,2.76121051]
[1754063949491,0.4545,3621.7,3621.6,5.76121051]
[1754063949710,0.4545,3621.7,3621.6,3.0]
[1754063949912,4.4604,3621.9,3621.6,5.76120489]
[1754063949913,4.9149,3621.9,3621.6,5.76120489]
[1754063950111,4.9149,3621.9,3621.6,3.0]
[1754063950425,4.4604,3621.9,3621.7,2.7611082]
[1754063952630,4.4604,3621.9,3621.8,2.76105803]
[1754063952789,7.67589806,3621.9,3621.6,3.0]
[1754063953004,6.89885352,3621.8,3621.4,0.002]
[1754063953345,0.1384,3621.5,3621.4,0.002]
[1754063953509,4.4544,3621.5,3621.4,0.002]
[1754063953846,4.9089,3621.5,3621.4,0.002]
[1754063962355,7.69398675,3621.5,3621.4,0.002]
[1754063962574,8.78676011,3621.5,3621.4,0.002]
[1754063963354,6.02547336,3621.5,3621.4,0.002]
[1754063963572,4.9327,3621.5,3621.4,0.002]
[1754063964372,7.69398675,3621.5,3621.4,0.002]
[1754063964920,4.9327,3621.5,3621.4,0.002]
[1754063965329,4.4544,3621.5,3621.4,0.002]
[1754063968066,7.21568675,3621.5,3621.4,0.002]
[1754063968775,8.2611997,3621.5,3621.4,0.002]
[1754063969269,9.2120997,3621.5,3621.4,0.002]
[1754063969691,4.8960997,3621.5,3621.4,0.002]
[1754063969982,8.7354997,3621.5,3621.4,0.002]
[1754063970275,9.2080997,3621.5,3621.4,0.002]
[1754063972077,9.2090997,3621.5,3621.4,0.002]
[1754063973083,9.7590997,3621.5,3621.4,0.002]
[1754063973740,12.8697597,3621.5,3621.4,0.002]
[1754063975073,12.3197597,3621.5,3621.4,0.002]
[1754063975369,17.72355322,3621.5,3621.4,0.002]
[1754063975674,7.21068675,3621.5,3621.4,0.9246]
[1754063975849,7.21068675,3621.5,3621.4,0.002]
[1754063976935,4.4494,3621.5,3621.4,0.9246]
[1754063977636,4.311,3621.5,3621.4,3.685963]
[1754063978700,4.311,3621.5,3621.4,0.9246]
[1754063978973,7.07228675,3621.5,3621.4,0.002]
[1754063979210,4.311,3621.5,3621.4,0.002]
[1754063979360,4.311,3621.5,3621.4,0.9246]
[1754063979536,4.4494,3621.5,3621.4,0.9246]
[1754063980983,4.4494,3621.5,3621.4,0.002]
[1754063981278,7.21068675,3621.5,3621.4,0.002]
[1754063981456,4.4494,3621.5,3621.4,0.002]
[1754063981658,4.4494,3621.5,3621.4,0.9246]
[1754063982742,4.4494,3621.5,3621.4,3.685963]
[1754063982946,4.311,3621.5,3621.4,0.9246]
[1754063983992,4.311,3621.5,3621.4,3.685963]
[1754063986743,4.308,3621.5,3621.4,3.685963]
[1754063986892,4.308,3621.5,3621.4,2.763363]
[1754063987064,4.308,3621.5,3621.4,0.002]
[1754063987264,5.3625,3621.5,3621.4,0.002]
[1754063987467,7.63848675,3621.5,3621.4,0.002]
[1754063987667,8.56408675,3621.5,3621.4,0.002]
[1754063988159,5.8028,3621.5,3621.4,0.002]
[1754063988497,8.56408675,3621.5,3621.4,0.002]
[1754063990289,9.11408675,3621.5,3621.4,0.002]
[1754063995893,13.16785203,3621.5,3621.4,0.002]
[1754063996730,16.16785203,3621.5,3621.4,1e-08]
[1754064000647,16.16785203,3621.5,3620.4,1e-08]
[1754064000648,3.55,3621.4,3620.4,1e-08]
[1754064000929,5.98705352,3620.5,3620.4,1e-08]
[1754064001287,6.12545352,3620.5,3620.2,1e-08]
[1754064001591,0.1384,3620.3,3620.2,1e-08]
[1754064003222,0.1384,3620.3,3620.2,0.47990001]
[1754064003525,4.4424,3620.3,3620.2,0.47990001]
[1754064004226,7.20460202,3620.3,3620.2,0.47990001]
[1754064004431,2.76243093,3620.0,3617.6,5.98705352]
[1754064004725,13.05248445,3620.0,3619.4,0.4799]
[1754064005025,13.60248445,3620.0,3619.5,0.4684]
[1754064005186,15.35953608,3620.0,3619.5,0.4684]
[1754064005602,16.28513608,3620.0,3619.1,0.4684]
[1754064005813,15.84483608,3620.0,3619.1,0.4684]
[1754064006115,15.35953608,3620.0,3619.4,0.4684]
[1754064006314,15.84483608,3620.0,3619.2,0.4799]
[1754064006538,16.28513608,3620.0,3619.2,0.4799]
[1754064006766,16.28513608,3620.0,3618.5,0.4684]
[1754064006767,2.76353432,3618.6,3618.5,0.4684]
[1754064006955,2.76353432,3618.6,3618.3,0.002]
[1754064006956,2.76365244,3618.4,3618.3,0.002]
[1754064007239,7.06665244,3618.4,3618.3,0.002]
[1754064007452,3.0,3618.9,3618.3,0.9503]
[1754064007620,2.76365244,3618.4,3618.3,0.4704]
[1754064007939,1.26250535,3618.9,3618.4,0.4684]
[1754064008102,4.303,3618.8,3618.3,0.002]
[1754064008312,2.76349969,3618.6,3618.5,0.4684]
[1754064008507,2.76365244,3618.4,3618.3,0.002]
[1754064008812,7.06665244,3618.4,3618.3,0.002]
[1754064009329,7.61665244,3618.4,3618.3,0.002]
[1754064009718,9.63969471,3618.4,3618.3,0.002]
[1754064010704,1.94949264,3618.4,3618.3,0.9503]
[1754064010933,6.639,3619.8,3618.3,0.9503]
[1754064011138,1.82378907,3619.2,3618.4,0.79463652]
[1754064011439,4.303,3619.1,3618.5,0.767]
[1754064011642,4.303,3619.1,3618.6,0.767]
[1754064011846,1.87466981,3619.0,3618.9,2.7632706]
[1754064012019,1.87466981,3619.0,3618.9,3.0618706]
[1754064012805,1.87466981,3619.0,3618.9,3.5302706]
[1754064013054,1.87466981,3619.0,3618.9,0.767]
[1754064013261,1.87466981,3619.0,3618.9,3.5302706]
[1754064013648,1.87466981,3619.0,3618.9,0.767]
[1754064013957,1.87466981,3619.0,3618.4,2.76360365]
[1754064014155,1.87466981,3619.0,3618.3,0.002]
[1754064014156,4.303,3618.9,3618.3,0.002]
[1754064014321,0.1384,3618.4,3618.3,0.002]
[1754064014522,4.4414,3618.4,3618.3,0.002]
[1754064014723,6.2643515,3618.4,3618.3,0.002]
[1754064018063,10.57143909,3618.4,3618.3,0.002]
[1754064019834,11.12143909,3618.4,3618.3,0.002]
[1754064020723,14.12143909,3618.4,3618.3,0.002]
[1754064024770,4.58660394,3618.4,3618.3,0.002]
[1754064024939,9.02800394,3618.4,3618.3,0.002]
[1754064025260,6.2643515,3618.4,3618.3,0.002]
[1754064025442,9.49400394,3618.4,3618.3,0.002]
[1754064025640,10.49500394,3618.4,3618.3,0.002]
[1754064025839,1.9613515,3618.4,3618.3,0.002]
[1754064026038,1.9613515,3618.4,3618.3,3.06462882]
[1754064026242,1.9613515,3618.4,3618.3,3.50592882]
[1754064026243,6.2643515,3618.4,3618.3,3.50592882]
[1754064026859,1.9613515,3618.4,3618.3,3.50592882]
[1754064027232,6.2643515,3618.4,3618.3,3.50592882]
[1754064027856,6.2643515,3618.4,3618.3,0.7422]
[1754064028396,6.2643515,3618.4,3618.3,3.50592882]
[1754064029253,6.2643515,3618.4,3618.3,0.7422]
[1754064029650,6.2643515,3618.4,3618.3,0.002]
[1754064030089,6.2643515,3618.4,3618.3,3.50592882]
[1754064030476,6.2643515,3618.4,3617.9,0.002]
[1754064030477,7.2803515,3618.4,3617.9,0.002]
[1754064030664,2.76395798,3618.0,3617.9,0.002]
[1754064030867,7.61595798,3618.0,3617.9,0.002]
[1754064031176,9.11928877,3618.0,3617.9,0.002]
[1754064031378,5.88933079,3618.0,3617.9,0.002]
[1754064031812,1.58733079,3618.0,3617.9,2.76603438]
[1754064031966,5.88933079,3618.0,3617.9,7.05925011]
[1754064032594,1.58733079,3618.0,3617.9,7.05925011]
[1754064032795,5.88933079,3618.0,3617.9,7.05925011]
[1754064033493,5.88933079,3618.0,3617.9,0.002]
[1754064034550,8.65328877,3618.0,3617.9,0.002]
[1754064034805,5.88933079,3618.0,3617.9,0.002]
[1754064035278,5.88933079,3618.0,3617.9,3.06493438]
[1754064035481,5.88933079,3618.0,3617.9,3.50623438]
[1754064036033,1.58733079,3618.0,3617.9,6.50623438]
[1754064036833,5.88933079,3618.0,3617.9,6.50623438]
[1754064037474,1e-08,3618.0,3617.9,6.50623438]
[1754064039805,1e-08,3618.0,3617.9,5.76603438]
[1754064040731,1e-08,3618.0,3617.9,6.50623438]
[1754064040919,1e-08,3618.0,3617.9,6.64463438]
[1754064041698,1e-08,3618.0,3617.9,5.90443438]
[1754064041897,4.76800001,3618.0,3617.9,0.002]
[1754064042098,5.21900001,3618.0,3617.9,0.002]
[1754064042310,5.21900001,3618.0,3617.9,2.76603438]
[1754064042311,4.30500001,3618.0,3617.9,2.76603438]
[1754064042540,1e-08,3618.0,3617.9,2.76603438]
[1754064042834,1e-08,3618.0,3617.9,3.50623438]
[1754064043023,1e-08,3618.0,3617.9,3.53387472]
[1754064043340,1e-08,3618.0,3617.9,3.50623438]
[1754064043941,1e-08,3618.0,3617.9,3.53387472]
[1754064044624,1e-08,3618.0,3617.9,16.08214872]
[1754064044813,1e-08,3618.0,3617.9,6.50623438]
[1754064045015,1e-08,3618.0,3617.9,8.58884238]
[1754064045541,1e-08,3618.0,3617.9,5.76603438]
[1754064046831,1e-08,3618.0,3617.9,6.49263438]
[1754064047043,1e-08,3618.0,3617.9,10.79463438]
[1754064047644,1e-08,3618.0,3617.9,6.49263438]
[1754064047862,1e-08,3618.0,3617.9,5.76603438]
[1754064048620,1e-08,3618.0,3617.9,6.49263438]
[1754064052257,1e-08,3618.0,3617.9,6.63103438]
[1754064052846,1e-08,3618.0,3617.9,6.33213438]
[1754064053448,1e-08,3618.0,3617.9,5.90443438]
[1754064054883,0.94260001,3618.0,3617.9,0.002]
[1754064055040,0.94260001,3618.0,3617.9,2.76603438]
[1754064055492,0.94260001,3618.0,3617.9,3.002]
[1754064055640,0.94260001,3618.0,3617.9,5.76603438]
[1754064056554,0.48380001,3618.0,3617.9,5.76603438]
[1754064057076,0.94260001,3618.0,3617.9,5.76603438]
[1754064057250,0.94260001,3618.0,3617.9,3.002]
[1754064057579,1.08100001,3618.0,3617.9,3.002]
[1754064058350,4.22954154,3618.0,3617.9,0.002]
[1754064058801,4.77954154,3618.0,3617.9,0.002]
[1754064060564,4.22954154,3618.0,3617.9,0.002]
[1754064060790,8.53154154,3618.0,3617.9,0.002]
[1754064060951,5.38300001,3618.0,3617.9,0.002]
[1754064061289,8.14695799,3618.0,3617.9,0.002]
[1754064062377,8.69695799,3618.0,3617.9,0.002]
[1754064063678,13.35695799,3618.0,3617.9,1e-08]
[1754064063887,19.94840868,3618.0,3617.9,1e-08]
[1754064064594,15.8946434,3618.0,3617.9,1e-08]
[1754064065602,6.2442434,3618.0,3617.9,1e-08]
[1754064065828,8.14695799,3618.0,3617.9,1e-08]
[1754064066027,8.69695799,3618.0,3617.9,1e-08]
[1754064067214,11.69695799,3618.0,3617.9,1e-08]
[1754064067417,13.35695799,3618.0,3617.9,1e-08]
[1754064068228,2.76464571,3617.1,3617.0,0.002]
[1754064068382,7.61664571,3617.1,3617.0,1e-08]
[1754064068582,8.69764571,3617.1,3617.0,1e-08]
[1754064068818,2.76533377,3616.2,3616.1,1e-08]
[1754064068992,15.57039804,3616.2,3616.1,1e-08]
[1754064069195,22.79096198,3616.2,3616.1,1e-08]
[1754064069435,13.53589771,3616.2,3616.1,1e-08]
[1754064070107,9.04329771,3616.2,3616.1,1e-08]
[1754064070307,0.1384,3616.2,3616.1,1e-08]
[1754064070616,4.4444,3616.2,3616.1,1e-08]
[1754064071217,8.15233377,3616.2,3616.1,1e-08]
[1754064071431,17.95739804,3616.2,3616.1,1e-08]
[1754064072399,20.95739804,3616.2,3616.1,1e-08]
[1754064072592,14.07459535,3616.2,3616.1,1e-08]
[1754064076619,0.55,3615.6,3614.5,0.002]
[1754064076810,0.1384,3614.6,3614.5,0.002]
[1754064077012,4.4464,3614.6,3614.5,0.002]
[1754064077328,7.21295784,3614.6,3614.5,0.002]
[1754064077524,4.4464,3614.6,3614.5,0.002]
[1754064077732,8.4017761,3614.6,3614.5,0.002]
[1754064078654,8.8954761,3614.6,3614.5,0.002]
[1754064079852,1.32721826,3614.6,3614.5,0.002]
[1754064080031,5.63221826,3614.6,3614.5,0.7388]
[1754064080553,5.63221826,3614.6,3614.5,0.002]
[1754064080554,8.3987761,3614.6,3614.5,0.002]
[1754064080715,10.00900057,3614.6,3614.5,0.002]
[1754064080915,10.99220057,3614.6,3614.5,0.002]
[1754064082752,10.06630057,3614.6,3614.5,0.002]
[1754064082960,9.51530057,3614.6,3614.5,0.002]
[1754064083919,6.74874273,3614.6,3614.5,0.002]
[1754064084119,9.51530057,3614.6,3614.5,0.002]
[1754064085330,10.44120057,3614.6,3614.5,0.002]
[1754064085920,10.99120057,3614.6,3614.5,0.002]
[1754064086860,10.55900057,3614.6,3614.5,0.002]
[1754064087066,10.06530057,3614.6,3614.5,0.002]
[1754064087227,10.99120057,3614.6,3614.5,0.002]
[1754064089062,10.06630057,3614.6,3614.5,0.002]
[1754064089583,10.56000057,3614.6,3614.5,0.002]
[1754064089726,6.25400057,3614.6,3614.5,0.002]
[1754064089925,5.63321826,3614.6,3614.5,0.002]
[1754064090130,5.63321826,3614.6,3614.5,0.4399]
[1754064091045,1.32721826,3614.6,3614.5,3.50543438]
[1754064091247,5.63321826,3614.6,3614.5,3.50543438]
[1754064091429,5.63321826,3614.6,3614.5,0.7388]
[1754064091628,5.63321826,3614.6,3614.5,3.50543438]
[1754064092540,1.32721826,3614.6,3614.5,3.50543438]
[1754064092958,5.63321826,3614.6,3614.5,3.50543438]
[1754064093139,5.49481826,3614.6,3614.5,3.50543438]
[1754064093659,1.18881826,3614.6,3614.5,6.50543438]
[1754064093964,5.49481826,3614.6,3614.5,6.50543438]
[1754064094327,1.18881826,3614.6,3614.5,6.50543438]
[1754064095134,1.18881826,3614.6,3614.5,5.76863438]
[1754064095460,1.32721826,3614.6,3614.5,5.76863438]
[1754064095872,1.32721826,3614.6,3614.5,2.76863438]
[1754064096068,1.32721826,3614.6,3614.5,0.002]
[1754064096265,1.82091826,3614.6,3614.5,0.002]
[1754064096836,1.32721826,3614.6,3614.5,2.76863438]
[1754064099503,1.18881826,3614.6,3614.5,7.19737634]
[1754064100177,0.4937,3616.5,3615.9,2.76548916]
[1754064100471,2.7653107,3616.3,3615.7,2.76570842]
[1754064100814,4.306,3616.2,3615.4,0.7368]
[1754064100943,0.1384,3615.8,3615.7,2.76571618]
[1754064101146,4.306,3615.8,3615.7,2.76571618]
[1754064103473,4.7997,3615.8,3615.2,2.76604982]
[1754064103678,0.9259,3615.7,3615.3,2.76601324]
[1754064103977,0.9259,3615.7,3614.7,2.90481341]
[1754064103978,0.4937,3615.6,3615.2,2.76607172]
[1754064104193,2.76551472,3616.0,3615.4,2.76594567]
[1754064104194,4.305,3615.5,3615.4,2.76594567]
[1754064104511,0.001,3616.1,3615.5,2.76586917]
[1754064104812,0.001,3616.1,3615.7,2.76571618]
[1754064104813,0.1384,3615.8,3615.7,2.76571618]
[1754064105019,0.1384,3615.8,3615.6,2.7657757]
[1754064105228,4.305,3615.7,3615.6,2.7657757]
[1754064105709,0.1384,3615.8,3615.7,2.76571618]
[1754064105875,0.1384,3615.9,3615.7,2.76571618]
[1754064106080,4.305,3615.8,3615.7,3.19371618]
[1754064106714,4.305,3615.8,3615.7,2.76571618]
[1754064107127,0.1384,3615.9,3615.8,2.76563969]
[1754064107280,4.4434,3615.9,3615.8,2.76563969]
[1754064107688,4.4434,3615.9,3615.4,0.428]
[1754064107920,4.4434,3615.9,3615.3,0.4373]
[1754064107921,4.4434,3615.9,3615.8,2.76563969]
[1754064108613,5.1146,3615.9,3614.5,0.832942]
[1754064108816,4.11472461,3615.8,3614.5,0.832942]
[1754064109016,0.1384,3614.6,3614.5,0.002]
[1754064109719,2.90495784,3614.6,3614.5,0.002]
[1754064110076,4.37609503,3614.6,3614.5,0.002]
[1754064110274,4.71219503,3614.6,3614.5,0.002]
[1754064110929,5.26219503,3614.6,3614.5,1e-08]
[1754064111131,3.90259503,3614.6,3614.5,1e-08]
[1754064111317,9.01719503,3614.6,3614.5,1e-08]
[1754064111629,9.56719503,3614.6,3614.5,1e-08]
[1754064115930,21.8222593,3614.6,3614.5,1e-08]
[1754064117203,12.23109503,3614.6,3614.5,1e-08]
[1754064118213,12.56719503,3614.6,3614.5,1e-08]
[1754064119045,19.72719503,3614.6,3614.5,1e-08]
[1754064119539,18.91759503,3614.6,3614.5,1e-08]
[1754064120243,19.02846803,3614.6,3614.5,1e-08]
[1754064121238,14.36995784,3614.6,3614.5,0.88640001]
[1754064121437,14.36995784,3614.6,3614.5,0.42800001]
[1754064121640,11.6034,3614.6,3614.5,0.88640001]
[1754064121841,4.4434,3614.6,3614.5,3.65303439]
[1754064122143,4.305,3614.6,3614.5,3.65303439]
[1754064122441,0.1384,3614.7,3614.6,2.76655784]
[1754064122641,0.1384,3614.7,3614.6,3.65295784]
[1754064122852,5.23409541,3614.9,3614.8,2.76640478]
[1754064123210,0.92809541,3614.9,3614.8,3.65280478]
[1754064123618,0.92809541,3614.9,3614.8,6.65280478]
[1754064123940,0.92809541,3614.9,3614.8,6.79120478]
[1754064127541,0.92809541,3614.9,3614.8,3.0]
[1754064127848,1.06649541,3614.9,3614.8,5.76640478]
[1754064128049,1.06649541,3614.9,3614.8,6.65280478]
[1754064128255,0.92809541,3614.9,3614.8,6.79120478]
[1754064130847,1e-08,3614.9,3614.8,10.95880478]
[1754064131048,1e-08,3614.9,3614.8,11.09720478]
[1754064131356,1e-08,3614.9,3614.8,11.64720478]
[1754064131565,1e-08,3614.9,3614.8,16.64582678]
[1754064131768,1e-08,3614.9,3614.8,15.00829878]
[1754064131969,1e-08,3614.9,3614.8,14.22020478]
[1754064133469,0.001,3616.1,3616.0,2.76548672]
[1754064133655,0.001,3616.1,3616.0,6.48464769]
[1754064133828,0.001,3616.1,3616.0,7.34339283]
[1754064135946,0.001,3616.1,3616.0,11.64839283]
[1754064136330,0.001,3616.1,3616.0,7.34339283]
[1754064136779,0.001,3616.1,3616.0,11.64839283]
[1754064137122,0.001,3616.1,3616.0,2.76548672]
[1754064138477,0.001,3616.1,3616.0,3.69278672]
[1754064138831,0.001,3616.1,3616.0,3.20468672]
[1754064139271,0.001,3616.1,3616.0,2.76548672]
[1754064139768,0.48,3616.1,3615.6,2.76574835]
[1754064140066,0.1384,3615.9,3615.8,2.76563969]
[1754064140234,0.479,3616.0,3615.8,2.76563969]
[1754064140434,0.1384,3615.9,3615.8,2.76563969]
[1754064141750,0.1384,3615.9,3615.8,3.20483969]
[1754064141960,0.1394,3616.1,3616.0,2.76548672]
[1754064142156,0.001,3616.1,3616.0,5.76548672]
[1754064142457,0.001,3616.1,3616.0,6.69278672]
[1754064143855,0.001,3616.1,3616.0,3.0]
[1754064144029,0.48,3616.1,3615.9,2.76551663]
[1754064144233,0.479,3616.0,3615.9,2.76551663]
[1754064145064,0.1394,3616.1,3616.0,2.76548672]
[1754064145432,0.1394,3616.1,3615.9,2.76550004]
[1754064145667,0.479,3616.0,3615.8,2.7655636]
[1754064145971,0.479,3616.0,3615.9,2.7655632]
[1754064146345,0.479,3616.0,3615.2,3.0]
[1754064146549,0.479,3616.0,3615.7,2.76565756]
[1754064146874,0.1384,3615.7,3615.6,2.76579267]
[1754064147063,0.1384,3615.7,3615.6,3.20499267]
[1754064147266,0.001,3616.1,3615.9,2.76549224]
[1754064147444,0.001,3616.1,3616.0,2.76548672]
[1754064148151,0.001,3616.1,3616.0,3.69278672]
[1754064148357,0.001,3616.1,3616.0,2.76548672]
[1754064150264,4.783,3616.1,3614.9,0.002]
[1754064150467,4.783,3616.1,3615.3,2.76595789]
[1754064150468,0.1384,3615.9,3615.3,2.76595789]
[1754064150661,0.479,3615.8,3615.5,2.76581977]
[1754064150873,0.49224,3616.0,3615.6,2.76577319]
[1754064151082,0.1384,3615.7,3615.6,2.76577319]
[1754064151873,0.1384,3615.7,3615.1,1.0657]
[1754064152134,0.1384,3615.7,3615.6,2.76579267]
[1754064152797,0.1394,3616.1,3616.0,2.76548672]
[1754064153087,0.001,3616.1,3616.0,3.69278672]
[1754064154573,0.001,3616.1,3616.0,6.69278672]
[1754064154911,0.001,3616.1,3616.0,5.76548672]
[1754064155501,0.48,3616.1,3615.1,4.7911]
[1754064155662,0.1384,3615.8,3615.6,2.76578816]
[1754064155860,0.1384,3615.8,3615.4,3.0]
[1754064156384,0.1384,3615.8,3615.4,5.76592709]
[1754064156385,0.6174,3615.8,3615.4,5.76592709]
[1754064156571,0.6174,3615.8,3615.4,2.76592709]
[1754064156770,0.1384,3615.8,3615.7,2.76571618]
[1754064156971,0.1384,3615.8,3615.7,3.69301618]
[1754064157373,0.001,3616.1,3616.0,2.76548672]
[1754064158009,1e-08,3616.5,3616.4,5.76518084]
[1754064158205,0.1384,3617.5,3617.4,2.76441643]
[1754064158417,4.30400001,3618.0,3617.0,3.0]
[1754064158578,0.1384,3617.6,3617.1,0.9273]
[1754064158894,0.1384,3617.6,3617.5,2.76434001]